fUSD/lending_fUSD_20240213
["ID","MTS","AMOUNT","RATE_DAILY","PERIOD"]
[313918227,1707823834963,-500.0,0.00028793,2]
[313918228,1707823834975,-500.0,0.00028793,2]
[313918229,1707823834987,-587.49,0.00028793,2]
[313918230,1707823834997,-500.0,0.00028793,2]
[313918231,1707823835008,-500.0,0.00028793,2]
[313918232,1707823835018,-500.0,0.00028793,2]
[313918233,1707823835028,-500.0,0.00028793,2]
[313918234,1707823835039,-500.0,0.00028793,2]
[313918235,1707823835049,-500.0,0.00028793,2]
[313918236,1707823835059,-500.0,0.00028793,2]
[313918237,1707823835071,-500.0,0.00028793,2]
[313918238,1707823835081,-500.0,0.00028793,2]
[313918239,1707823835092,-22013.21,0.00028793,2]
[313918240,1707823835102,-500.0,0.00028793,2]
[313918241,1707823835112,-500.0,0.00028793,2]
[313918242,1707823835122,-500.0,0.00028793,2]
[313918243,1707823835133,-500.0,0.00028793,2]
[313918244,1707823835143,-500.0,0.00028793,2]
[313918245,1707823835154,-500.0,0.00028793,2]
[313918246,1707823835164,-980.47,0.00028793,2]
[313918247,1707823835175,-304.24779564,0.00028793,2]
[313918248,1707823835185,-345.85464403,0.00028793,2]
[313918249,1707823835195,-500.0,0.00028793,2]
[313918250,1707823835206,-627.64496652,0.00028793,2]
[313918251,1707823835217,-500.0,0.00028793,2]
[313918252,1707823835228,-500.0,0.00028793,2]
[313918253,1707823835239,-500.0,0.00028793,2]
[313918254,1707823835250,-500.0,0.00028793,2]
[313918255,1707823835261,-335.63220264,0.00028793,2]
[313918256,1707823835273,-552.97320216,0.00028793,2]
[313918257,1707823835285,-1644.37,0.00028793,2]
[313918258,1707823835295,-4024.1,0.00028793,2]
[313918259,1707823835305,-500.0,0.00028793,2]
[313918260,1707823835315,-500.0,0.00028793,2]
[313918261,1707823835325,-500.0,0.00028793,2]
[313918262,1707823835335,-504.78,0.00028793,2]
[313918263,1707823835347,-500.0,0.00028793,2]
[313918264,1707823835358,-500.0,0.00028793,2]
[313918265,1707823835369,-500.0,0.00028793,2]
[313918266,1707823835380,-563.36,0.00028793,2]
[313918267,1707823835391,-500.0,0.00028793,2]
[313918268,1707823835402,-500.0,0.00028793,2]
[313918269,1707823835411,-500.0,0.00028793,2]
[313918270,1707823835421,-538.99,0.00028793,2]
[313918271,1707823835433,-394.0169916,0.00028793,2]
[313918272,1707823835443,-274.61000564,0.00028793,2]
[313918273,1707823835454,-570.02005516,0.00028793,2]
[313918274,1707823835464,-500.0,0.00028793,2]
[313918275,1707823835474,-1049.6,0.00028793,2]
[313918276,1707823835484,-355.89120596,0.00028793,2]
[313918277,1707823835495,-513.64,0.00028793,2]
[313918278,1707823835505,-500.0,0.00028793,2]
[313918279,1707823835515,-500.0,0.00028793,2]
[313918280,1707823835525,-1057.39,0.00028793,2]
[313918281,1707823835536,-500.0,0.00028793,2]
[313918282,1707823835546,-500.0,0.00028793,2]
[313918283,1707823835556,-26344.71664652,0.00028794,7]
[313918284,1707823835576,-23655.28335348,0.00028794,7]
[313918285,1707823835586,-21000.88686414,0.00028794,7]
[313918286,1707823835597,-50000.0,0.00028794,7]
[313918287,1707823835607,-50000.0,0.00028794,7]
[313918288,1707823835618,-18106.03977342,0.00028794,7]
[313918289,1707823835628,-20734.00248427,0.00028794,7]
[313918290,1707823835641,-29265.99751573,0.00028794,7]
[313918291,1707823835651,-10166.1547977,0.00028794,7]
[313918292,1707823835662,-1000.0,0.000288,2]
[313918293,1707823835672,-200.0,0.00028823,2]
[313918294,1707823835682,-200.0,0.00028837,2]
[313918295,1707823835693,-200.0,0.00028837,2]
[313918296,1707823835703,-152.79276746,0.00028838,2]
[313918297,1707823835713,-800.0,0.00028852,2]
[313918298,1707823835723,-200.0,0.00028852,2]
[313918299,1707823835734,-500.0,0.00028852,2]
[313918300,1707823835746,-150.0,0.00028863,2]
[313918301,1707823835756,-200.0,0.00028867,2]
[313918302,1707823835766,-170.80855075,0.0002887,2]
[313918303,1707823835776,-150.0,0.00028872,2]
[313918304,1707823835786,-120670.45731812,0.0002888,2]
[313918305,1707823835800,-46600.92991756,0.0002888,2]
[313918306,1707823835813,-2393.0359926,0.0002888,2]
[313918307,1707823835833,-49836.00000002,0.0002888,2]
[313918308,1707823836097,-386.69622014,0.00024455,2]
[313918309,1707823836107,-21020.10877679,0.0002888,2]
[313918310,1707823836119,-4979.09083999,0.0002888,2]
[313918311,1707823836134,-373.90204875,0.0002888,2]
[313918312,1707823836158,-10.05,0.0002888,2]
[313918313,1707823836179,-1566.98708128,0.0002888,2]
[313918314,1707823836301,-319.24149127,0.0002888,2]
[313918315,1707823836314,-357.46371413,0.0002888,2]
[313918316,1707823836326,-3109.80568273,0.0002888,2]
[313918317,1707823836338,-1571.006,0.0002888,2]
[313918318,1707823836395,-928.21059985,0.0002888,2]
[313918319,1707823836407,-58797.87442259,0.0002888,2]
[313918320,1707823836418,-200.0,0.00028881,2]
[313918321,1707823836428,-150.0,0.00028882,2]
[313918322,1707823836440,-500.0,0.0002889,2]
[313918323,1707823836451,-155.49024871,0.00028894,2]
[313918324,1707823836460,-200.0,0.00028896,2]
[313918325,1707823836470,-150.0,0.00028904,2]
[313918326,1707823836479,-5000.0,0.00028936,2]
[313918327,1707823836489,-150.0,0.00028938,2]
[313918328,1707823836499,-500.0,0.0002894,2]
[313918329,1707823836509,-500.0,0.0002894,2]
[313918330,1707823836519,-720.1,0.0002894,2]
[313918331,1707823836528,-500.0,0.0002894,2]
[313918332,1707823836538,-500.0,0.0002894,2]
[313918333,1707823836549,-500.0,0.0002894,2]
[313918334,1707823836559,-500.0,0.0002894,2]
[313918335,1707823836570,-646.89008272,0.0002894,2]
[313918336,1707823836581,-500.0,0.0002894,2]
[313918337,1707823836591,-500.0,0.0002894,2]
[313918338,1707823836600,-527.48296565,0.0002894,2]
[313918339,1707823836610,-1000.0,0.0002894,7]
[313918340,1707823836620,-506.95,0.0002894,2]
[313918341,1707823836629,-500.0,0.0002894,2]
[313918342,1707823836640,-500.0,0.0002894,2]
[313918343,1707823836649,-500.0,0.0002894,2]
[313918344,1707823836659,-500.0,0.0002894,2]
[313918345,1707823836671,-500.0,0.0002894,2]
[313918346,1707823836680,-500.0,0.0002894,2]
[313918347,1707823836691,-500.0,0.0002894,2]
[313918348,1707823836702,-253.45430194,0.0002894,2]
[313918349,1707823836713,-1133.91,0.0002894,2]
[313918350,1707823836725,-500.0,0.0002894,2]
[313918351,1707823836735,-500.0,0.0002894,2]
[313918352,1707823836744,-500.0,0.0002894,2]
[313918353,1707823836753,-562.4,0.0002894,2]
[313918354,1707823836762,-500.0,0.0002894,2]
[313918355,1707823836771,-500.0,0.0002894,2]
[313918356,1707823836780,-375.85358643,0.0002894,2]
[313918357,1707823836790,-500.0,0.0002894,2]
[313918358,1707823836799,-7250.6271,0.00028941,2]
[313918359,1707823836807,-179153.20157112,0.00028941,2]
[313918361,1707823838406,-518.01679133,0.00024455,2]
[313918362,1707823838415,-544.05912263,0.00028781,2]
[313918363,1707823838424,-4918.56660695,0.00028941,2]
[313918364,1707823838438,-3370.76342193,0.00028941,2]
[313918365,1707823838448,-1630.46375807,0.00028941,2]
[313918369,1707823839099,-528.74028672,0.00028793,2]
[313918370,1707823839109,-500.0,0.00028793,2]
[313918371,1707823839118,-599.39990899,0.00028793,2]
[313918372,1707823839128,-222.64429085,0.00028941,2]
[313918373,1707823839141,-1011.54489938,0.00028941,2]
[313918374,1707823839156,-1001.87231041,0.00028941,2]
[313918385,1707823840917,-500.0,0.00028792,2]
[313918386,1707823840941,-500.0,0.00028793,2]
[313918387,1707823840965,-500.0,0.00028793,2]
[313918388,1707823840989,-5826.68694129,0.00028941,2]
[313918389,1707823841000,-4490.29752348,0.00028941,2]
[313918390,1707823841038,-4983.6,0.00028941,2]
[313918391,1707823841151,-1114.56677652,0.00028941,2]
[313918392,1707823841160,-150.0,0.00028942,2]
[313918393,1707823841169,-150.0,0.00028943,2]
[313918394,1707823841178,-150.0,0.0002895,2]
[313918395,1707823841187,-150.0,0.00028952,2]
[313918396,1707823841196,-150.0,0.00028972,2]
[313918397,1707823841205,-150.0,0.00028991,2]
[313918398,1707823841213,-2956.43322348,0.00028996,2]
[313918399,1707823841225,-2849.4344307,0.00028996,2]
[313918400,1707823841233,-450.0,0.00029,3]
[313918401,1707823841242,-2520.57713857,0.00029,4]
[313918402,1707823841251,-159.72869695,0.00029,2]
[313918403,1707823841260,-312.5529508,0.00029,2]
[313918404,1707823841269,-1255.75020522,0.00029,2]
[313918405,1707823841278,-163.98550412,0.00029,2]
[313918406,1707823841287,-837.05,0.00029002,2]
[313918407,1707823841296,-150.0,0.00029035,2]
[313918408,1707823841305,-150.0,0.00029036,2]
[313918409,1707823841314,-500.0,0.00029036,2]
[313918410,1707823841323,-500.0,0.00029036,2]
[313918411,1707823841335,-96.72114564,0.00029036,2]
[313918412,1707823841880,-500.0,0.00028793,2]
[313918414,1707823841890,-500.0,0.00028793,2]
[313918416,1707823841900,-403.27885436,0.00029036,2]
[313918419,1707823841909,-500.0,0.00029036,2]
[313918420,1707823841918,-500.0,0.00029036,2]
[313918422,1707823841927,-500.0,0.00029036,2]
[313918424,1707823841936,-500.0,0.00029036,2]
[313918425,1707823841945,-500.0,0.00029036,2]
[313918426,1707823841955,-250.0,0.00029036,2]
[313918427,1707823841963,-500.0,0.00029036,2]
[313918428,1707823841972,-500.0,0.00029036,2]
[313918429,1707823841981,-500.0,0.00029036,2]
[313918430,1707823841991,-500.0,0.00029036,2]
[313918431,1707823842001,-500.0,0.00029036,2]
[313918432,1707823842013,-500.0,0.00029036,2]
[313918433,1707823842025,-500.0,0.00029036,2]
[313918434,1707823842037,-500.0,0.00029036,2]
[313918435,1707823842048,-500.0,0.00029036,2]
[313918436,1707823842060,-500.0,0.00029036,2]
[313918437,1707823842071,-500.0,0.00029036,2]
[313918438,1707823842084,-500.0,0.00029036,2]
[313918439,1707823842094,-500.0,0.00029036,2]
[313918440,1707823842104,-500.0,0.00029036,2]
[313918441,1707823842114,-500.0,0.00029036,2]
[313918442,1707823842124,-500.0,0.00029036,2]
[313918443,1707823842134,-500.0,0.00029036,2]
[313918444,1707823842146,-500.0,0.00029036,2]
[313918445,1707823842156,-500.0,0.00029036,2]
[313918446,1707823842167,-500.0,0.00029036,2]
[313918447,1707823842177,-500.0,0.00029036,2]
[313918448,1707823842188,-500.0,0.00029036,2]
[313918449,1707823842199,-500.0,0.00029036,2]
[313918450,1707823842210,-500.0,0.00029036,2]
[313918451,1707823842222,-500.0,0.00029036,2]
[313918452,1707823842234,-500.0,0.00029036,2]
[313918453,1707823842245,-500.0,0.00029036,2]
[313918454,1707823842255,-500.0,0.00029036,2]
[313918455,1707823842265,-500.0,0.00029036,2]
[313918456,1707823842276,-500.0,0.00029036,2]
[313918457,1707823842286,-500.0,0.00029036,2]
[313918458,1707823842297,-500.0,0.00029036,2]
[313918459,1707823842306,-500.0,0.00029036,2]
[313918460,1707823842315,-500.0,0.00029036,2]
[313918461,1707823842326,-500.0,0.00029036,2]
[313918462,1707823842337,-500.0,0.00029036,2]
[313918463,1707823842348,-500.0,0.00029036,2]
[313918464,1707823842361,-500.0,0.00029036,2]
[313918465,1707823842371,-500.0,0.00029036,2]
[313918466,1707823842381,-500.0,0.00029036,2]
[313918467,1707823842392,-500.0,0.00029036,2]
[313918468,1707823842402,-500.0,0.00029036,2]
[313918469,1707823842412,-500.0,0.00029036,2]
[313918470,1707823842422,-500.0,0.00029036,2]
[313918471,1707823842433,-500.0,0.00029036,2]
[313918472,1707823842444,-500.0,0.00029036,2]
[313918473,1707823842455,-500.0,0.00029036,2]
[313918474,1707823842466,-500.0,0.00029036,2]
[313918475,1707823842477,-500.0,0.00029036,2]
[313918476,1707823842488,-500.0,0.00029036,2]
[313918477,1707823842497,-500.0,0.00029036,2]
[313918478,1707823842507,-500.0,0.00029036,2]
[313918479,1707823842517,-500.0,0.00029036,2]
[313918480,1707823842527,-500.0,0.00029036,2]
[313918481,1707823842536,-500.0,0.00029036,2]
[313918482,1707823842548,-500.0,0.00029036,2]
[313918483,1707823842559,-300.0,0.00029036,2]
[313918484,1707823842570,-500.0,0.00029036,2]
[313918485,1707823842582,-500.0,0.00029036,2]
[313918486,1707823842592,-500.0,0.00029036,2]
[313918487,1707823842602,-500.0,0.00029036,2]
[313918488,1707823842614,-500.0,0.00029036,2]
[313918489,1707823842624,-500.0,0.00029036,2]
[313918490,1707823842634,-500.0,0.00029036,2]
[313918491,1707823842644,-500.0,0.00029036,2]
[313918492,1707823842655,-400.0,0.00029036,2]
[313918493,1707823842665,-500.0,0.00029036,2]
[313918494,1707823842675,-500.0,0.00029036,2]
[313918495,1707823842686,-500.0,0.00029036,2]
[313918496,1707823842697,-500.0,0.00029036,2]
[313918497,1707823842707,-500.0,0.00029036,2]
[313918498,1707823842718,-500.0,0.00029036,2]
[313918499,1707823842728,-500.0,0.00029036,2]
[313918500,1707823842739,-500.0,0.00029036,2]
[313918501,1707823842749,-500.0,0.00029036,2]
[313918502,1707823842760,-500.0,0.00029036,2]
[313918503,1707823842772,-500.0,0.00029036,2]
[313918504,1707823842783,-500.0,0.00029036,2]
[313918505,1707823842793,-500.0,0.00029036,2]
[313918506,1707823842805,-500.0,0.00029036,2]
[313918507,1707823842816,-500.0,0.00029036,2]
[313918508,1707823842828,-500.0,0.00029036,2]
[313918509,1707823842840,-500.0,0.00029036,2]
[313918510,1707823842850,-500.0,0.00029036,2]
[313918511,1707823842859,-500.0,0.00029036,2]
[313918512,1707823842868,-500.0,0.00029036,2]
[313918513,1707823842877,-500.0,0.00029036,2]
[313918514,1707823842887,-500.0,0.00029036,2]
[313918515,1707823842896,-500.0,0.00029036,2]
[313918516,1707823842905,-500.0,0.00029036,2]
[313918517,1707823842915,-500.0,0.00029036,2]
[313918518,1707823842925,-500.0,0.00029036,2]
[313918519,1707823842936,-500.0,0.00029036,2]
[313918520,1707823842946,-500.0,0.00029036,2]
[313918521,1707823842957,-500.0,0.00029036,2]
[313918522,1707823842966,-500.0,0.00029036,2]
[313918523,1707823842977,-500.0,0.00029036,2]
[313918524,1707823842986,-500.0,0.00029036,2]
[313918526,1707823842998,-500.0,0.00029036,2]
[313918527,1707823843008,-500.0,0.00029036,2]
[313918528,1707823843018,-500.0,0.00029036,2]
[313918529,1707823843028,-500.0,0.00029036,2]
[313918530,1707823843038,-500.0,0.00029036,2]
[313918532,1707823843048,-500.0,0.00029036,2]
[313918533,1707823843058,-500.0,0.00029036,2]
[313918534,1707823843068,-500.0,0.00029036,2]
[313918535,1707823843078,-500.0,0.00029036,2]
[313918536,1707823843088,-500.0,0.00029036,2]
[313918537,1707823843098,-500.0,0.00029036,2]
[313918538,1707823843109,-500.0,0.00029036,2]
[313918539,1707823843119,-500.0,0.00029036,2]
[313918540,1707823843129,-500.0,0.00029036,2]
[313918541,1707823843139,-500.0,0.00029036,2]
[313918542,1707823843149,-500.0,0.00029036,2]
[313918543,1707823843159,-500.0,0.00029036,2]
[313918545,1707823843169,-500.0,0.00029036,2]
[313918547,1707823843179,-500.0,0.00029036,2]
[313918549,1707823843188,-500.0,0.00029036,2]
[313918551,1707823843200,-500.0,0.00029036,2]
[313918553,1707823843209,-500.0,0.00029036,2]
[313918556,1707823843219,-500.0,0.00029036,2]
[313918558,1707823843229,-500.0,0.00029036,2]
[313918560,1707823843239,-500.0,0.00029036,2]
[313918562,1707823843250,-500.0,0.00029036,2]
[313918564,1707823843259,-500.0,0.00029036,2]
[313918567,1707823843269,-500.0,0.00029036,2]
[313918569,1707823843279,-500.0,0.00029036,2]
[313918571,1707823843289,-217.25896728,0.00029037,2]
[313918573,1707823843299,-160.76583708,0.00029037,2]
[313918575,1707823843309,-176.41076475,0.00029037,2]
[313918577,1707823843319,-803.32188729,0.00029037,2]
[313918580,1707823843330,-155.0,0.00029037,2]
[313918583,1707823843340,-290.75702615,0.00029037,2]
[313918585,1707823843351,-156.29778135,0.00029037,2]
[313918587,1707823843364,-158.33501146,0.00029037,2]
[313918589,1707823843374,-199.51723664,0.00029037,2]
[313918591,1707823843384,-1444.4099148,0.00029037,2]
[313918594,1707823843394,-203.13377714,0.00029037,2]
[313918596,1707823843404,-155.32524818,0.00029037,2]
[313918598,1707823843414,-173102.5399489,0.00029037,2]
[313918600,1707823843423,-155.69856495,0.00029037,2]
[313918602,1707823843434,-288.82931725,0.00029037,2]
[313918604,1707823843443,-155.53362643,0.00029038,2]
[313918606,1707823843453,-173.00578432,0.00029038,2]
[313918608,1707823843463,-157.76706625,0.00029038,2]
[313918610,1707823843472,-530.42485167,0.00029038,2]
[313918612,1707823843482,-156.15680877,0.00029039,2]
[313918614,1707823843492,-1050.01203165,0.00029039,2]
[313918616,1707823843501,-4281.87774192,0.00029039,2]
[313918617,1707823843511,-216.1197047,0.00029039,2]
[313918619,1707823843521,-319.41325858,0.00029039,2]
[313918621,1707823843530,-192.70278043,0.00029039,2]
[313918623,1707823843541,-209.06740831,0.00029039,2]
[313918624,1707823843551,-544.27967836,0.00029039,2]
[313918625,1707823843561,-254.27562907,0.00029039,2]
[313918626,1707823843571,-156.08626201,0.00029039,2]
[313918627,1707823843582,-298.00316852,0.00029039,2]
[313918628,1707823843591,-156.50871268,0.00029039,2]
[313918630,1707823843601,-725.54404605,0.00029039,2]
[313918632,1707823843611,-233.02993481,0.00029039,2]
[313918634,1707823843621,-402.64229273,0.00029039,2]
[313918636,1707823843630,-790.87281783,0.00029039,2]
[313918638,1707823843640,-14252.51119113,0.00029039,2]
[313918640,1707823843650,-987.10591515,0.00029039,2]
[313918642,1707823843659,-155.80535637,0.00029039,2]
[313918645,1707823843669,-560.28091609,0.00029039,2]
[313918648,1707823843679,-156.67625939,0.00029039,2]
[313918651,1707823843689,-177.1567599,0.00029039,2]
[313918654,1707823843699,-155.78404574,0.00029039,2]
[313918657,1707823843709,-277.01735443,0.00029039,2]
[313918660,1707823843719,-560.53077789,0.00029039,2]
[313918664,1707823843729,-462.17425163,0.00029039,2]
[313918666,1707823843738,-199.36519612,0.00029039,2]
[313918668,1707823843750,-624.16165234,0.00029039,2]
[313918670,1707823843760,-257.98094851,0.00029039,2]
[313918672,1707823843769,-158.69673302,0.00029039,2]
[313918674,1707823843779,-210321.54575901,0.00029039,2]
[313918676,1707823843789,-204.06138426,0.00029039,2]
[313918678,1707823843800,-11610.27814989,0.00029039,2]
[313918680,1707823843810,-157.3743127,0.00029039,2]
[313918682,1707823843821,-18058.63224786,0.00029039,2]
[313918684,1707823843832,-257.95837551,0.00029039,2]
[313918686,1707823843842,-15944.52594591,0.00029039,2]
[313918688,1707823843851,-150.01,0.00029039,2]
[313918691,1707823843861,-3314.82130757,0.00029039,2]
[313918692,1707823843871,-156.31275665,0.0002904,2]
[313918694,1707823843882,-29854.19545112,0.0002904,2]
[313918695,1707823843892,-12054.88042205,0.00029041,2]
[313918696,1707823843901,-500.0,0.00029041,2]
[313918697,1707823843911,-598.32816968,0.00029041,2]
[313918698,1707823843921,-532.47640367,0.00029041,2]
[313918699,1707823843931,-500.0,0.00029041,2]
[313918702,1707823843941,-206.25616472,0.00029041,2]
[313918703,1707823843951,-500.0,0.00029041,2]
[313918704,1707823843960,-500.0,0.00029041,2]
[313918705,1707823843970,-500.0,0.00029041,2]
[313918706,1707823843980,-500.0,0.00029041,2]
[313918708,1707823843990,-404.95745661,0.00029041,2]
[313918710,1707823843999,-500.0,0.00029041,2]
[313918711,1707823844009,-593.16015446,0.00029041,2]
[313918714,1707823844019,-800.0,0.00029041,2]
[313918716,1707823844028,-150.0,0.00029055,2]
[313918718,1707823844038,-411.16708467,0.00029067,2]
[313918721,1707823844048,-500.0,0.00029067,2]
[313918724,1707823844058,-500.0,0.00029067,7]
[313918727,1707823844067,-500.0,0.00029067,2]
[313918729,1707823844077,-500.0,0.00029067,2]
[313918731,1707823844087,-500.0,0.00029067,2]
[313918732,1707823844097,-500.0,0.00029067,2]
[313918734,1707823844106,-433.46920608,0.00029067,2]
[313918737,1707823844116,-208.23921167,0.00029067,2]
[313918738,1707823844126,-439.56954889,0.00029067,2]
[313918739,1707823844136,-500.0,0.00029067,2]
[313918740,1707823844147,-571.2522804,0.00029067,2]
[313918741,1707823844157,-562.19121198,0.00029067,2]
[313918742,1707823844167,-500.0,0.00029067,2]
[313918743,1707823844185,-286.74421378,0.00029067,2]
[313918744,1707823844195,-553.29464784,0.00029067,2]
[313918745,1707823844204,-500.0,0.00029067,2]
[313918746,1707823844214,-500.0,0.00029067,2]
[313918747,1707823844224,-500.0,0.00029067,2]
[313918748,1707823844233,-500.0,0.00029067,2]
[313918749,1707823844243,-500.0,0.00029067,2]
[313918750,1707823844253,-552.04295551,0.00029067,2]
[313918751,1707823844263,-500.0,0.00029067,2]
[313918752,1707823844273,-510.71804097,0.00029067,2]
[313918753,1707823844283,-500.0,0.00029067,2]
[313918754,1707823844293,-567.11819807,0.00029067,2]
[313918755,1707823844303,-1228.16,0.00029067,2]
[313918756,1707823844312,-500.0,0.00029067,2]
[313918757,1707823844322,-1025.19,0.00029067,2]
[313918758,1707823844333,-500.0,0.00029067,2]
[313918759,1707823844343,-500.0,0.00029067,2]
[313918760,1707823844354,-500.0,0.00029067,2]
[313918761,1707823844367,-500.0,0.00029067,2]
[313918762,1707823844377,-500.0,0.00029067,2]
[313918763,1707823844386,-500.0,0.00029067,2]
[313918764,1707823844396,-565.87869267,0.00029067,2]
[313918765,1707823844405,-500.0,0.00029067,2]
[313918766,1707823844415,-1474.43,0.00029067,2]
[313918767,1707823844425,-500.0,0.00029067,2]
[313918768,1707823844434,-835.02,0.00029067,2]
[313918769,1707823844455,-500.0,0.00029067,2]
[313918770,1707823844478,-714.04,0.00029067,2]
[313918771,1707823844502,-368.78403471,0.00029067,2]
[313918772,1707823844522,-500.0,0.00029067,2]
[313918773,1707823844544,-500.0,0.00029067,2]
[313918774,1707823844568,-500.0,0.00029067,2]
[313918775,1707823844586,-500.0,0.00029067,2]
[313918776,1707823844595,-500.0,0.00029067,2]
[313918777,1707823844605,-500.0,0.00029067,2]
[313918778,1707823844614,-500.0,0.00029067,2]
[313918779,1707823844624,-593.56639225,0.00029067,2]
[313918780,1707823844634,-500.0,0.00029067,2]
[313918781,1707823844643,-154.6437251,0.00029067,2]
[313918782,1707823844654,-547.59,0.00029067,2]
[313918783,1707823844663,-1562.04,0.00029067,2]
[313918784,1707823844673,-1088.36,0.00029067,2]
[313918785,1707823844683,-682.24,0.00029067,2]
[313918786,1707823844692,-500.0,0.00029067,2]
[313918787,1707823844702,-500.0,0.00029067,2]
[313918788,1707823844711,-656.5,0.00029067,2]
[313918789,1707823844721,-500.0,0.00029067,2]
[313918790,1707823844730,-1750.39,0.00029067,2]
[313918791,1707823844740,-1786.42,0.00029067,2]
[313918792,1707823844750,-500.0,0.00029067,2]
[313918793,1707823845047,-500.0,0.00029067,2]
[313918794,1707823845068,-799.68,0.00029067,2]
[313918795,1707823845084,-500.0,0.00029067,2]
[313918796,1707823845094,-500.0,0.00029067,2]
[313918797,1707823845103,-500.0,0.00029067,2]
[313918798,1707823845112,-500.0,0.00029067,2]
[313918799,1707823845122,-650.86,0.00029067,2]
[313918800,1707823845132,-500.0,0.00029067,2]
[313918801,1707823845141,-500.0,0.00029067,2]
[313918802,1707823845150,-500.0,0.00029067,2]
[313918803,1707823845159,-500.0,0.00029067,2]
[313918804,1707823845169,-1873.71,0.00029067,2]
[313918805,1707823845178,-1445.49,0.00029067,2]
[313918806,1707823845188,-500.0,0.00029067,2]
[313918807,1707823845197,-500.0,0.00029067,2]
[313918808,1707823845205,-500.0,0.00029067,2]
[313918809,1707823845214,-535.10773136,0.00029067,2]
[313918810,1707823845224,-171.40501213,0.00029067,2]
[313918811,1707823845233,-552.15,0.00029067,2]
[313918812,1707823845243,-574.70983922,0.00029067,2]
[313918813,1707823845253,-500.0,0.00029067,2]
[313918814,1707823845262,-500.0,0.00029067,2]
[313918815,1707823845272,-574.20118815,0.00029067,2]
[313918816,1707823845281,-500.0,0.00029067,2]
[313918817,1707823845290,-500.0,0.00029067,2]
[313918818,1707823845300,-500.0,0.00029067,2]
[313918819,1707823845309,-544.89,0.00029067,2]
[313918820,1707823845319,-500.55,0.00029067,2]
[313918821,1707823845329,-500.0,0.00029067,2]
[313918822,1707823845338,-500.0,0.00029067,2]
[313918823,1707823845347,-500.0,0.00029067,2]
[313918824,1707823845358,-1167.13,0.00029067,2]
[313918825,1707823845368,-1691.15,0.00029067,2]
[313918826,1707823845378,-500.0,0.00029067,2]
[313918827,1707823845387,-500.0,0.00029067,2]
[313918828,1707823845396,-570.0475101,0.00029067,2]
[313918829,1707823845406,-500.0,0.00029067,2]
[313918830,1707823845415,-500.0,0.00029067,2]
[313918831,1707823845424,-525.08,0.00029067,2]
[313918832,1707823845434,-500.0,0.00029067,2]
[313918833,1707823845444,-500.0,0.00029067,2]
[313918834,1707823845454,-500.0,0.00029067,2]
[313918835,1707823845463,-500.0,0.00029067,2]
[313918836,1707823845472,-500.0,0.00029067,2]
[313918837,1707823845481,-500.0,0.00029067,2]
[313918838,1707823845491,-1396.74,0.00029067,2]
[313918839,1707823845500,-1050.85,0.00029067,2]
[313918840,1707823845509,-562.43,0.00029067,2]
[313918841,1707823845519,-2526.49,0.00029067,2]
[313918842,1707823845529,-500.0,0.00029067,2]
[313918843,1707823845538,-388.44820833,0.00029067,2]
[313918844,1707823845548,-500.0,0.00029067,2]
[313918845,1707823845557,-486.68355842,0.00029067,2]
[313918846,1707823845567,-500.0,0.00029067,2]